{"text_format":"1","workbook":"xlsx","n_sheets":5,"sheets":["Organizational Priorities","Buckets of Work","Task Identification","Decision","Data"],"not_rendered":{"charts":0,"images":1,"macros":1,"external_links":0,"defined_names":1,"comments":0,"pivot_tables":0},"unopened":[],"bounds":{"document_bytes":16777216,"sheet_cells":100000,"rows_first":2000,"rows_last":500,"rows_between":2000,"halvings":0,"cell_chars":16384,"cell_head_chars":4096},"cells_cut":0,"cells_raw":0,"read":"whole","date_system":"1900"}

{"sheet":"Organizational Priorities","index":0,"n_rows":28,"n_cols":2,"rows_kept":28,"cut":false,"hidden":false,"merged":[[0,0,2,11],[6,1,6,11],[5,1,5,11],[7,1,7,11],[8,1,8,11]]}
["Prioritizing Impact and Maximizing Efficiency Recommendation Framework"]
[]
[]
["Steps to use the tool:"]
["Step #1: Type In College/Unit Organizational Priorities","Defined by the College/Unit"]
["Step #2:  Identify Team Strategic Priorities","Defined by the Department in alignment with the College/Unit Strategic Priorities"]
["Step #3: Idenfity Buckets of Work","Individuals/Teams provide insight on the buckets of work to meet the strategic priorities"]
["Step #4: Task Identification","Identify the tasks required to accomplish the work that fall into each bucket"]
["Step # 5: Decision","Determine who will lead next steps to put together a formal recommendation for review and approval by College/Unit Leadership to move forward"]
[]
[]
[]
["College/Unit Organizational Priorities"]
["Strategic Priorities"]
["College/Unit Organizational Priority #1"]
["College/Unit Organizational Priority #2"]
["College/Unit Organizational Priority #3"]
[]
[]
[]
[]
[]
["Step #2: Identify Team Strategic Priorities"]
["Strategic Priorities"]
["Team Priority #1"]
["Team Priority #2"]
["Team Priority #3"]
["Non Priority Specific"]

{"sheet":"Buckets of Work","index":1,"n_rows":37,"n_cols":14,"rows_kept":37,"cut":false,"hidden":false,"merged":[[44,3,45,7],[0,0,0,2]]}
["Step #3: Identify the team's work"]
["#","Team Strategic Priority","Big Buckets of Work"]
[{"$f":"ROW() - ROW(step26[[#Headers],['#]])","v":1}]
[{"$f":"ROW() - ROW(step26[[#Headers],['#]])","v":2}]
[{"$f":"ROW() - ROW(step26[[#Headers],['#]])","v":3}]
[{"$f":"ROW() - ROW(step26[[#Headers],['#]])","v":4}]
[{"$f":"ROW() - ROW(step26[[#Headers],['#]])","v":5}]
[{"$f":"ROW() - ROW(step26[[#Headers],['#]])","v":6}]
[{"$f":"ROW() - ROW(step26[[#Headers],['#]])","v":7}]
[{"$f":"ROW() - ROW(step26[[#Headers],['#]])","v":8}]
[{"$f":"ROW() - ROW(step26[[#Headers],['#]])","v":9}]
[{"$f":"ROW() - ROW(step26[[#Headers],['#]])","v":10}]
[]
[]
[]
[]
[]
[]
[]
[]
[]
[null,null,null,null,null,null,null,null,null,null,null,{"$f":"A38","v":0},{"$f":"C38","v":0}]
[null,null,null,null,null,null,null,null,null,null,null,0,0]
[null,null,null,null,null,null,null,null,null,null,null,0,0]
[null,null,null,null,null,null,null,null,null,null,null,0,0]
[null,null,null,null,null,null,null,null,null,null,null,0,0]
[null,null,null,null,null,null,null,null,null,null,null,0,0]
[null,null,null,null,null,null,null,null,null,null,null,null,{"$f":"A44","v":0},{"$f":"C44","v":0}]
[null,null,null,null,null,null,null,null,null,null,null,null,0,0]
[null,null,null,null,null,null,null,null,null,null,null,null,0,0]
[null,null,null,null,null,null,null,null,null,null,null,null,0,0]
[null,null,null,null,null,null,null,null,null,null,null,null,0,0]
[null,null,null,null,null,null,null,null,null,null,null,null,0,0]
[null,null,null,null,null,null,null,null,null,null,null,null,0,0]
[null,null,null,null,null,null,null,null,null,null,null,null,0,0]
[null,null,null,null,null,null,null,null,null,null,null,null,0,0]
[null,null,null,null,null,null,null,null,null,null,null,null,0,0]

{"sheet":"Task Identification","index":2,"n_rows":4,"n_cols":12,"rows_kept":4,"cut":false,"hidden":false,"merged":[[3,11,6,11]]}
["Step #4 Identify Tasks Within Buckets"]
["#","Bucket of Work","Strategic Priority","Task/Project","Types of Work","Impact on Customer  (1-low to 10 high)","Effort to accomplish work   (1-low to 10 high)","Return on Investment","Recommendation to the Decision Maker","Prioritize the value quadrant (most to least important)","Level of Impact on Other Department, College or Unit"]
[{"$f":"ROW() - ROW(Table3[[#Headers],['#]])-1","v":0},0,{"$f":"_xlfn.XLOOKUP(B3,'Buckets of Work'!C:C,'Buckets of Work'!B:B,\"Not Found\")","v":"Not Found"},null,null,null,null,null,{"$f":"IF(Table3[[#This Row],[Impact on Customer  (1-low to 10 high)]]>5, IF(Table3[[#This Row],[Effort to accomplish work   (1-low to 10 high)]]>5, \"Optimize\", \"Keep\"), IF(Table3[[#This Row],[Effort to accomplish work   (1-low to 10 high)]]>5, \"Delegate\", \"Stop\"))","v":"Stop"},null,"High - Positive"]
[{"$f":"ROW() - ROW(Table3[[#Headers],['#]])-1","v":1},null,{"$f":"_xlfn.XLOOKUP(B4,'Buckets of Work'!C:C,'Buckets of Work'!B:B,\"Not Found\")","v":0},null,null,null,null,null,{"$f":"IF(Table3[[#This Row],[Impact on Customer  (1-low to 10 high)]]>5, IF(Table3[[#This Row],[Effort to accomplish work   (1-low to 10 high)]]>5, \"Optimize\", \"Keep\"), IF(Table3[[#This Row],[Effort to accomplish work   (1-low to 10 high)]]>5, \"Delegate\", \"Stop\"))","v":"Stop"},null,null,"Select level of impact in Column K and a new row will be added to the table"]

{"sheet":"Decision","index":3,"n_rows":5,"n_cols":10,"rows_kept":5,"cut":false,"hidden":false,"merged":[[0,0,1,9]]}
["Step # 5 Determine Leads/Decision Makers"]
[]
["#","Strategic Priority","Bucket of Work","Task/Project","Lead (responsible for the task/project status and communication plan)","Decision Maker","Recommendation to the Decision Maker","Recommendation submitted to decision maker (senior leadership)","Decision Maker Determination (Stop, Delegate, Optimize, Keep)","Notes (Details, Assumptions, Communications planning, Next steps)"]
[0,"Not Found",0,null,null,null,"Stop"]
[1,0,null,null,null,null,"Stop"]

{"sheet":"Data","index":4,"n_rows":40,"n_cols":8,"rows_kept":40,"cut":false,"hidden":true,"merged":[]}
["Strategic Priority","Degree of Impact","Recommendation Submitted","Completion Status","Bucket ","Type of Work","Decision Maker Determination ","Return on Investment"]
[{"$f":"'Organizational Priorities'!A25","v":"Team Priority #1"},"High - Positive","Yes","Not Started",{"$f":"'Buckets of Work'!C3","v":0},"Program (Strategic, Ongoing)","Stop","Low"]
[{"$f":"'Organizational Priorities'!A26","v":"Team Priority #2"},"Medium - Positive","No","In Progress",{"$f":"'Buckets of Work'!C4","v":0},"Service (Operational, Continuous)","Delegate","Medium"]
[{"$f":"'Organizational Priorities'!A27","v":"Team Priority #3"},"Low - Positive",null,"Complete",{"$f":"'Buckets of Work'!C5","v":0},"Initiative (Strategic, Time-bound, Experimental)","Optimize","High"]
[{"$f":"'Organizational Priorities'!A28","v":"Non Priority Specific"},"Neutral",null,null,{"$f":"'Buckets of Work'!C6","v":0},"Project (Tactical, Temporary)","Keep"]
[null,"Low - Negative",null,null,{"$f":"'Buckets of Work'!C7","v":0}]
[null,"Medium - Negative",null,null,{"$f":"'Buckets of Work'!C8","v":0}]
[null,"High - Negative",null,null,{"$f":"'Buckets of Work'!C9","v":0}]
[null,null,null,null,{"$f":"'Buckets of Work'!C10","v":0}]
[null,null,null,null,{"$f":"'Buckets of Work'!C13","v":0}]
[null,null,null,null,{"$f":"'Buckets of Work'!C14","v":0}]
[null,null,null,null,{"$f":"'Buckets of Work'!C15","v":0}]
[null,null,null,null,{"$f":"'Buckets of Work'!C16","v":0}]
[null,null,null,null,{"$f":"'Buckets of Work'!C17","v":0}]
[null,null,null,null,{"$f":"'Buckets of Work'!C18","v":0}]
[null,null,null,null,{"$f":"'Buckets of Work'!C19","v":0}]
[null,null,null,null,{"$f":"'Buckets of Work'!C21","v":0}]
[null,null,null,null,{"$f":"'Buckets of Work'!C22","v":0}]
[null,null,null,null,{"$f":"'Buckets of Work'!C23","v":0}]
[null,null,null,null,{"$f":"'Buckets of Work'!C24","v":0}]
[null,null,null,null,{"$f":"'Buckets of Work'!C25","v":0}]
[null,null,null,null,{"$f":"'Buckets of Work'!C26","v":0}]
[null,null,null,null,{"$f":"'Buckets of Work'!C27","v":0}]
[null,null,null,null,{"$f":"'Buckets of Work'!C28","v":0}]
[null,null,null,null,{"$f":"'Buckets of Work'!C29","v":0}]
[null,null,null,null,{"$f":"'Buckets of Work'!C30","v":0}]
[null,null,null,null,{"$f":"'Buckets of Work'!C31","v":0}]
[null,null,null,null,{"$f":"'Buckets of Work'!C32","v":0}]
[null,null,null,null,{"$f":"'Buckets of Work'!C33","v":0}]
[null,null,null,null,{"$f":"'Buckets of Work'!C34","v":0}]
[null,null,null,null,{"$f":"'Buckets of Work'!C35","v":0}]
[null,null,null,null,{"$f":"'Buckets of Work'!C36","v":0}]
[null,null,null,null,{"$f":"'Buckets of Work'!C37","v":0}]
[null,null,null,null,{"$f":"'Buckets of Work'!C38","v":0}]
[null,null,null,null,{"$f":"'Buckets of Work'!C39","v":0}]
[null,null,null,null,{"$f":"'Buckets of Work'!C40","v":0}]
[null,null,null,null,{"$f":"'Buckets of Work'!C41","v":0}]
[null,null,null,null,{"$f":"'Buckets of Work'!C42","v":0}]
[null,null,null,null,{"$f":"'Buckets of Work'!C43","v":0}]
[null,null,null,null,{"$f":"'Buckets of Work'!C44","v":0}]